bitfinex-derivatives/quotes_BTCF0:USTF0_20250127
["timestamp","ask_amount","ask_price","bid_price","bid_amount"]
[1737953414293,0.66452688,100500.0,100490.0,0.00114898]
[1737953414590,0.66452688,100500.0,100490.0,0.00214898]
[1737953415090,0.82962688,100500.0,100490.0,0.00214898]
[1737953421184,0.93423976,100500.0,100490.0,0.00214898]
[1737953421384,0.199147,100490.0,100470.0,0.09163435]
[1737953421590,0.10461288,100480.0,100470.0,0.09163435]
[1737953421892,0.90221988,100490.0,100470.0,0.44222848]
[1737953422685,0.90336886,100490.0,100470.0,0.45237746]
[1737953423300,0.10461288,100480.0,100470.0,0.45237746]
[1737953423792,0.90336886,100490.0,100470.0,0.45237746]
[1737953424394,0.75706886,100490.0,100470.0,0.65155046]
[1737953424593,0.75606886,100490.0,100470.0,0.64455046]
[1737953424787,0.001,100480.0,100470.0,0.65155046]
[1737953425185,0.75606886,100490.0,100470.0,0.64155046]
[1737953425495,0.66456688,100480.0,100470.0,0.04357746]
[1737953425800,0.199173,100470.0,100460.0,0.21182646]
[1737953425982,0.76919876,100470.0,100460.0,0.21182646]
[1737953426190,0.66458588,100470.0,100460.0,0.03331628]
[1737953427190,0.3608,100470.0,100450.0,0.199199]
[1737953427393,0.46541288,100470.0,100450.0,0.199199]
[1737953428187,0.46641288,100470.0,100460.0,0.009]
[1737953428801,0.46641288,100470.0,100450.0,0.208199]
[1737953428997,0.10561288,100470.0,100460.0,0.202193]
[1737953429203,0.86151876,100470.0,100460.0,0.003]
[1737953429392,0.86051876,100470.0,100460.0,0.003]
[1737953429595,0.86151876,100470.0,100460.0,0.009]
[1737953429895,0.57102576,100470.0,100460.0,0.009]
[1737953430098,0.57102576,100470.0,100460.0,0.006]
[1737953430494,0.77019876,100470.0,100460.0,0.006]
[1737953431001,0.76919876,100470.0,100450.0,0.101]
[1737953431298,0.3608,100460.0,100450.0,0.101]
[1737953431693,0.3608,100460.0,100450.0,0.097]
[1737953432409,0.559994,100460.0,100450.0,0.009]
[1737953432701,0.559994,100460.0,100440.0,1.65341288]
[1737953432899,0.560994,100460.0,100450.0,0.009]
[1737953433294,0.560994,100460.0,100450.0,0.012]
[1737953434405,0.560994,100460.0,100450.0,0.003]
[1737953434892,0.001,100460.0,100450.0,0.563013]
[1737953435093,0.14755177,100460.0,100450.0,0.211213]
[1737953435900,0.14755177,100460.0,100450.0,0.67662588]
[1737953436109,0.1760111,100470.0,100460.0,0.199193]
[1737953436404,0.1760111,100470.0,100460.0,0.297193]
[1737953436597,0.1760111,100470.0,100460.0,0.76260588]
[1737953437500,0.1770111,100470.0,100460.0,0.76860588]
[1737953437700,0.701115,100500.0,100480.0,0.199134]
[1737953437902,0.654815,100500.0,100480.0,0.66454688]
[1737953438104,0.559915,100500.0,100490.0,0.199134]
[1737953438300,0.559915,100500.0,100490.0,0.249034]
[1737953438502,0.20459975,100510.0,100490.0,0.51531288]
[1737953438700,0.20459975,100510.0,100500.0,0.71242688]
[1737953438896,0.20474873,100510.0,100500.0,0.71242688]
[1737953439497,0.18621358,100510.0,100500.0,0.71242688]
[1737953440106,0.23399926,100520.0,100500.0,0.81331288]
[1737953440306,0.23399926,100520.0,100510.0,0.559894]
[1737953441505,0.23399926,100520.0,100510.0,0.565894]
[1737953441809,0.23399926,100520.0,100510.0,0.67050688]
[1737953443108,0.23399926,100520.0,100510.0,0.67250688]
[1737953443410,0.59479926,100520.0,100510.0,0.008]
[1737953443613,0.43307326,100520.0,100510.0,0.008]
[1737953443912,0.199074,100520.0,100510.0,0.11061288]
[1737953444408,0.69424245,100530.0,100510.0,0.006]
[1737953444605,0.66448688,100520.0,100510.0,0.006]
[1737953444806,0.559874,100520.0,100510.0,0.006]
[1737953445007,0.559874,100520.0,100510.0,0.002]
[1737953445203,0.559874,100520.0,100510.0,0.003]
[1737953445506,0.559874,100520.0,100510.0,0.001]
[1737953446405,0.560874,100520.0,100510.0,0.001]
[1737953447008,0.66548688,100520.0,100510.0,0.001]
[1737953447210,0.46741288,100520.0,100490.0,0.00014898]
[1737953447413,0.3608,100500.0,100490.0,0.00014898]
[1737953448513,0.559914,100500.0,100490.0,0.00114898]
[1737953448908,0.66452688,100500.0,100490.0,0.00114898]
[1737953449104,1.11262688,100500.0,100490.0,0.00214898]
[1737953449307,1.11262688,100500.0,100490.0,0.00314898]
[1737953449505,1.20386688,100500.0,100490.0,0.00314898]
[1737953449704,1.36896688,100500.0,100490.0,0.00314898]
[1737953450515,1.57446576,100500.0,100460.0,0.3608]
[1737953450813,0.199202,100460.0,100440.0,2.060027]
[1737953451012,0.199202,100460.0,100440.0,2.16463988]
[1737953451309,0.560002,100460.0,100440.0,2.16463988]
[1737953451713,0.19935098,100460.0,100440.0,2.21108886]
[1737953451912,0.19935098,100460.0,100450.0,0.10461288]
[1737953452712,0.19935098,100460.0,100440.0,2.20897598]
[1737953452713,0.19935098,100460.0,100440.0,2.31358886]
[1737953453307,0.19935098,100460.0,100440.0,3.81358886]
[1737953453720,0.19935098,100460.0,100450.0,0.10461288]
[1737953453915,0.00014898,100460.0,100450.0,0.66462588]
[1737953454111,0.00014898,100460.0,100450.0,0.30382588]
[1737953454316,0.00114898,100460.0,100450.0,0.31482588]
[1737953454816,0.11787321,100460.0,100450.0,0.31482588]
[1737953455224,0.401513,100450.0,100440.0,1.38979598]
[1737953455426,0.199292,100410.0,100400.0,0.4608]
[1737953455721,0.30390488,100410.0,100400.0,0.1]
[1737953456020,0.30390488,100410.0,100400.0,0.1155758]
[1737953456021,0.66470488,100410.0,100400.0,0.1155758]
[1737953456220,0.76931776,100410.0,100400.0,0.1155758]
[1737953456520,0.76931776,100410.0,100400.0,0.11524166]
[1737953456921,0.76931776,100410.0,100400.0,0.09966586]
[1737953457918,0.76931776,100410.0,100400.0,0.10466586]
[1737953458217,0.19932,100400.0,100380.0,0.83229113]
[1737953458417,0.46541288,100390.0,100380.0,0.83229113]
[1737953458624,0.51191288,100400.0,100380.0,1.39244313]
[1737953458814,0.51206186,100400.0,100380.0,1.03164313]
[1737953459014,0.10461288,100390.0,100380.0,1.03164313]
[1737953459209,0.46541288,100390.0,100380.0,0.83229113]
[1737953459516,0.10461288,100390.0,100380.0,0.83229113]
[1737953459712,0.51206186,100400.0,100380.0,1.03164313]
[1737953459920,0.15126186,100400.0,100390.0,0.199332]
[1737953460121,0.10476186,100400.0,100390.0,0.199332]
[1737953460422,0.00014898,100400.0,100390.0,0.199332]
[1737953460724,0.00014898,100400.0,100390.0,0.08837171]
[1737953461020,0.00014898,100400.0,100390.0,0.09537171]
[1737953461323,0.00114898,100400.0,100390.0,0.56378459]
[1737953461908,0.10576186,100400.0,100390.0,0.09837171]
[1737953462119,0.10576186,100400.0,100390.0,0.09876817]
[1737953462430,0.00114898,100400.0,100390.0,0.45956817]
[1737953462624,0.00114898,100400.0,100390.0,0.56418105]
[1737953463223,0.00114898,100400.0,100390.0,0.37391533]
[1737953463629,0.20535525,100410.0,100390.0,0.67391533]
[1737953463921,0.17493765,100430.0,100420.0,0.199273]
[1737953464121,0.17493765,100430.0,100420.0,2.52548588]
[1737953464513,0.43809319,100440.0,100420.0,2.67874911]
[1737953464820,0.43824217,100440.0,100430.0,0.71720211]
[1737953465022,0.11625743,100440.0,100430.0,0.71720211]
[1737953465219,0.11625743,100440.0,100430.0,1.06300211]
[1737953465422,4.3e-07,100440.0,100430.0,1.06300211]
[1737953465619,0.20409393,100470.0,100430.0,1.02089822]
[1737953465821,0.20409393,100470.0,100460.0,0.71714211]
[1737953466018,0.20409393,100470.0,100460.0,0.559993]
[1737953467127,0.92121604,100470.0,100450.0,0.56016098]
[1737953467431,0.71714211,100460.0,100450.0,0.00014898]
[1737953467624,0.51794911,100460.0,100430.0,0.3608]
[1737953467930,0.71720011,100440.0,100420.0,0.199271]
[1737953468122,0.199262,100430.0,100410.0,0.560091]
[1737953468323,0.51794911,100430.0,100410.0,0.560091]
[1737953468514,0.71720911,100430.0,100410.0,0.560091]
[1737953468720,0.56006,100430.0,100410.0,0.560091]
[1737953469031,0.56020898,100430.0,100410.0,0.56023998]
[1737953469524,0.36480898,100430.0,100420.0,0.3608]
[1737953469725,0.19940898,100430.0,100420.0,0.3608]
[1737953471131,0.20040898,100430.0,100420.0,0.3608]
[1737953471718,0.20040898,100430.0,100410.0,0.56023998]
[1737953471719,0.1654,100420.0,100380.0,0.79703908]
[1737953471924,0.560117,100400.0,100380.0,0.79703908]
[1737953472125,0.560094,100410.0,100380.0,0.95418819]
[1737953472432,0.560094,100410.0,100380.0,0.84173908]
[1737953473126,0.56024298,100410.0,100380.0,0.84173908]
[1737953473323,0.56024298,100410.0,100380.0,0.604848]
[1737953473824,0.56024298,100410.0,100380.0,0.608848]
[1737953474134,0.199317,100400.0,100380.0,0.608848]
[1737953474329,0.199317,100400.0,100380.0,0.610848]
[1737953474727,0.36194898,100410.0,100380.0,0.56864911]
[1737953475028,0.36194898,100410.0,100400.0,0.35646111]
[1737953475029,0.00114898,100410.0,100400.0,0.35646111]
[1737953475735,0.605026,100450.0,100400.0,0.97509822]
[1737953475922,0.3608,100430.0,100410.0,0.3608]
[1737953476233,0.71720711,100430.0,100410.0,0.560092]
[1737953476429,0.35642211,100420.0,100410.0,0.199292]
[1737953476937,0.56020198,100430.0,100410.0,0.560092]
[1737953477235,0.35655109,100430.0,100420.0,0.3608]
[1737953477830,0.19940198,100430.0,100420.0,0.560073]
[1737953478032,0.00014898,100430.0,100420.0,0.560073]
[1737953478622,0.00314898,100430.0,100420.0,0.560073]
[1737953479229,0.51794911,100470.0,100420.0,0.81794911]
[1737953479427,0.15714911,100460.0,100440.0,0.199219]
[1737953479631,0.15714911,100450.0,100440.0,0.199219]
[1737953480035,0.51794911,100460.0,100450.0,0.199213]
[1737953480225,0.71712311,100470.0,100450.0,0.199213]
[1737953480429,0.71727209,100470.0,100450.0,0.199213]
[1737953481025,0.56012298,100470.0,100450.0,0.199213]
[1737953481226,0.009,100460.0,100450.0,0.199213]
[1737953481833,0.199213,100450.0,100440.0,0.00014898]
[1737953482023,0.71716211,100450.0,100440.0,0.00014898]
[1737953482337,0.560013,100450.0,100440.0,0.00014898]
[1737953482832,0.61054911,100450.0,100410.0,0.199277]
[1737953483027,0.3608,100420.0,100410.0,0.199277]
[1737953483530,0.560073,100420.0,100410.0,0.199277]
[1737953483838,0.560073,100420.0,100400.0,0.19931]
[1737953484137,0.560073,100420.0,100400.0,0.19945898]
[1737953485325,0.560073,100420.0,100400.0,0.20345898]
[1737953485530,0.560073,100420.0,100400.0,0.20445898]
[1737953489636,0.04474898,100430.0,100400.0,0.52309809]
[1737953489831,0.04474898,100430.0,100420.0,0.199273]
[1737953490036,0.00014898,100430.0,100420.0,0.199273]
[1737953490537,0.56020198,100430.0,100410.0,1.699288]
[1737953490838,0.56020198,100430.0,100410.0,0.199288]
[1737953491040,0.56020198,100430.0,100400.0,0.16229809]
[1737953491337,0.56020198,100430.0,100420.0,0.199273]
[1737953492138,0.36094898,100430.0,100420.0,0.199273]
[1737953492443,0.00014898,100430.0,100420.0,0.199273]
[1737953492632,0.36094898,100430.0,100420.0,0.199273]
[1737953492841,0.00014898,100430.0,100420.0,0.199273]
[1737953494132,0.00314898,100430.0,100420.0,0.199273]
[1737953494329,0.00414898,100430.0,100420.0,0.199273]
[1737953495035,0.199273,100420.0,100410.0,0.199288]
[1737953495235,0.560073,100420.0,100400.0,0.00014898]
[1737953495441,0.3608,100410.0,100400.0,0.19945798]
[1737953495834,0.71724111,100410.0,100400.0,0.00014898]
[1737953496035,0.88264111,100410.0,100400.0,0.00014898]
[1737953496236,0.199317,100400.0,100380.0,0.199348]
[1737953497129,0.3608,100390.0,100370.0,0.59769108]
[1737953497334,0.68334911,100410.0,100370.0,0.75484019]
[1737953497535,0.560094,100410.0,100390.0,0.199328]
[1737953497737,0.00014898,100400.0,100390.0,0.199328]
[1737953498138,0.00014898,100400.0,100390.0,0.647028]
[1737953498351,0.00014898,100400.0,100390.0,0.44337711]
[1737953498645,0.00014898,100400.0,100390.0,0.84637711]
[1737953498646,0.00114898,100400.0,100390.0,0.84637711]
[1737953499030,0.00114898,100400.0,100390.0,0.84937711]
[1737953499344,0.17627094,100400.0,100390.0,0.697228]
[1737953499539,0.17627094,100400.0,100390.0,2.197228]
[1737953499946,0.17627094,100400.0,100390.0,2.35437711]
[1737953501642,0.17627094,100400.0,100390.0,2.197228]
[1737953501842,0.17627094,100400.0,100390.0,0.697228]
[1737953502035,0.00114898,100400.0,100390.0,0.336428]
[1737953503336,0.36194898,100400.0,100390.0,0.336428]
[1737953504838,0.36194898,100400.0,100390.0,0.207328]
[1737953505441,0.00114898,100400.0,100390.0,0.207328]
[1737953505647,0.56126098,100400.0,100390.0,0.207328]
[1737953505945,0.20046098,100400.0,100390.0,0.207328]
[1737953506142,0.56126098,100400.0,100390.0,0.207328]
[1737953506341,0.20046098,100400.0,100390.0,0.207328]
[1737953506744,0.56126098,100400.0,100390.0,0.207328]
[1737953507143,0.20046098,100400.0,100390.0,0.207328]
[1737953507644,0.00114898,100400.0,100390.0,0.207328]
[1737953507953,0.00114898,100400.0,100390.0,0.568128]
[1737953508148,0.00114898,100400.0,100390.0,0.72527711]
[1737953508448,0.1742139,100410.0,100400.0,0.199312]
[1737953508641,0.1742139,100410.0,100400.0,0.694712]
[1737953508846,0.1742139,100410.0,100400.0,0.85186111]
[1737953509049,0.13704825,100430.0,100420.0,0.199272]
[1737953509447,0.3608,100440.0,100410.0,0.51794911]
[1737953509752,0.71735009,100440.0,100420.0,0.19927]
[1737953509954,0.199272,100420.0,100410.0,0.00014898]
[1737953510144,0.71722111,100420.0,100410.0,0.00014898]
[1737953510343,0.56074911,100420.0,100390.0,0.568131]
[1737953510548,0.71725711,100410.0,100390.0,0.568131]
[1737953510945,0.71725711,100410.0,100400.0,0.001]
[1737953511150,0.71725711,100410.0,100400.0,0.005]
[1737953511753,0.199312,100400.0,100390.0,0.009]
[1737953511955,0.560112,100400.0,100390.0,0.009]
[1737953512554,0.560112,100400.0,100390.0,0.003]
[1737953513749,0.71726111,100400.0,100390.0,0.003]
[1737953514353,0.71726111,100400.0,100360.0,0.3608]
[1737953514354,0.51794911,100400.0,100360.0,0.3608]
[1737953514552,0.560137,100390.0,100370.0,0.199371]
[1737953514753,0.56028598,100390.0,100370.0,0.199371]
[1737953515054,0.60248598,100390.0,100370.0,0.199371]
[1737953515246,0.199352,100380.0,100370.0,0.199371]
[1737953515852,0.199352,100380.0,100370.0,0.205371]
[1737953516351,0.199352,100380.0,100370.0,0.210371]
[1737953517144,0.00114898,100390.0,100380.0,0.199352]
[1737953517561,0.00014898,100390.0,100380.0,0.199352]
[1737953517858,0.36094898,100390.0,100380.0,0.199352]
[1737953518358,0.14649158,100380.0,100370.0,0.3718]
[1737953518658,0.50729158,100380.0,100360.0,0.41471459]
[1737953518958,0.199372,100370.0,100360.0,0.61410559]
[1737953519660,0.38984458,100380.0,100360.0,0.7712547]
[1737953519862,0.75064458,100380.0,100360.0,0.61410559]
[1737953520661,0.38984458,100380.0,100360.0,0.7712547]
[1737953520957,0.14649158,100380.0,100370.0,0.71732111]
[1737953521161,0.14649158,100380.0,100370.0,0.240972]
[1737953521357,0.35650111,100380.0,100370.0,0.005]
[1737953521552,0.76230111,100380.0,100370.0,0.005]
[1737953521856,0.40250111,100380.0,100370.0,0.005]
[1737953522056,0.76330111,100380.0,100370.0,0.005]
[1737953522252,0.76330111,100380.0,100370.0,0.011]
[1737953524462,0.606152,100380.0,100370.0,0.011]
[1737953524958,0.76330111,100380.0,100370.0,0.011]
[1737953525161,0.001,100380.0,100370.0,0.210372]
[1737953525358,0.14749158,100380.0,100370.0,0.210372]
[1737953525963,0.14749158,100380.0,100370.0,0.011]
[1737953525964,0.86479269,100380.0,100370.0,0.011]
[1737953526354,0.50399269,100380.0,100370.0,0.011]
[1737953526553,0.86479269,100380.0,100370.0,0.011]
[1737953528553,0.81258866,100380.0,100370.0,0.011]
[1737953528757,0.81258866,100380.0,100370.0,0.210372]
[1737953529958,0.81258866,100380.0,100370.0,0.011]
[1737953531766,0.14749158,100380.0,100370.0,0.210372]
[1737953531967,0.81258866,100380.0,100370.0,0.011]
[1737953532166,0.45178866,100380.0,100370.0,0.011]
[1737953532563,0.81258866,100380.0,100370.0,0.011]
[1737953532760,0.45178866,100380.0,100370.0,0.011]
[1737953532966,0.14749158,100380.0,100370.0,0.210372]
[1737953533167,0.14749158,100380.0,100370.0,0.255372]
[1737953534162,0.81258866,100380.0,100370.0,0.011]
[1737953540665,0.84161645,100380.0,100370.0,0.011]
[1737953541367,0.84161645,100380.0,100370.0,0.210372]
[1737953541766,0.53731937,100380.0,100370.0,0.210372]
[1737953542268,0.64226445,100380.0,100370.0,0.210372]
[1737953545068,0.94656153,100380.0,100370.0,0.011]
[1737953545273,0.84161645,100380.0,100370.0,0.011]
[1737953545477,0.94656153,100380.0,100370.0,0.011]
[1737953546065,0.84161645,100380.0,100370.0,0.011]
[1737953546475,0.94656153,100380.0,100370.0,0.011]
[1737953546775,0.99146153,100380.0,100370.0,0.011]
[1737953547269,0.99146153,100380.0,100350.0,0.39908087]
[1737953547576,0.10494508,100360.0,100350.0,0.19941]
[1737953547772,0.46574508,100360.0,100350.0,0.20972454]
[1737953548477,0.46574508,100360.0,100350.0,0.21672454]
[1737953548982,0.46574508,100360.0,100350.0,0.20641]
[1737953549178,0.46574508,100360.0,100350.0,0.19941]
[1737953549386,0.46674508,100360.0,100350.0,0.20641]
[1737953549878,0.46774508,100360.0,100350.0,0.20641]
[1737953551274,0.66713708,100360.0,100350.0,0.007]
[1737953552384,0.84323232,100360.0,100350.0,0.007]
[1737953552597,0.84223232,100360.0,100340.0,0.37746222]
[1737953552792,0.84223232,100360.0,100350.0,0.199411]
[1737953553494,0.64284032,100360.0,100350.0,0.199411]
[1737953553695,0.64284032,100360.0,100350.0,1.699411]
[1737953554094,0.64284032,100360.0,100350.0,0.199411]
[1737953554295,0.84223232,100360.0,100350.0,0.199411]
[1737953554599,0.84323232,100360.0,100350.0,0.199411]
[1737953555195,0.84223232,100360.0,100340.0,0.17803222]
[1737953555395,0.73828724,100360.0,100350.0,0.003]
[1737953555703,0.73828724,100360.0,100350.0,0.202411]
[1737953556292,0.37748724,100360.0,100350.0,0.202411]
[1737953556498,0.17809524,100360.0,100350.0,0.202411]
[1737953556702,0.28304032,100360.0,100350.0,0.202411]
[1737953557103,0.17809524,100360.0,100350.0,0.202411]
[1737953557405,0.28304032,100360.0,100350.0,0.199411]
[1737953557599,0.17809524,100360.0,100350.0,0.199411]
[1737953558101,0.17809524,100360.0,100350.0,0.560211]
[1737953558411,0.17709524,100360.0,100350.0,0.564211]
[1737953558706,0.32372407,100360.0,100350.0,0.564211]
[1737953560398,0.32372407,100360.0,100350.0,0.203411]
[1737953561395,0.32372407,100360.0,100350.0,0.564211]
[1737953561605,0.32372407,100360.0,100350.0,0.203411]
[1737953561802,0.32372407,100360.0,100350.0,0.2134929]
[1737953562104,0.58405655,100360.0,100350.0,0.203411]
[1737953562301,0.78344855,100360.0,100350.0,0.203411]
[1737953562499,0.82684855,100360.0,100350.0,0.203411]
[1737953564109,0.78344855,100360.0,100350.0,0.203411]
[1737953566011,0.84223232,100360.0,100350.0,0.203411]
[1737953567097,0.53789524,100360.0,100350.0,0.203411]
[1737953567306,0.64284032,100360.0,100350.0,0.203411]
[1737953568003,0.17709524,100360.0,100350.0,0.203411]
[1737953568209,0.53789524,100360.0,100350.0,0.203411]
[1737953569109,0.17709524,100360.0,100350.0,0.203411]
[1737953569501,0.73728724,100360.0,100350.0,0.004]
[1737953569704,0.84223232,100360.0,100350.0,0.004]
[1737953569904,0.73728724,100360.0,100350.0,0.004]
[1737953573205,0.84223232,100360.0,100350.0,0.004]
[1737953573610,0.73728724,100360.0,100350.0,0.004]
[1737953575212,0.84223232,100360.0,100350.0,0.004]
[1737953575402,0.85492055,100360.0,100350.0,0.004]
[1737953575913,0.74997547,100360.0,100350.0,0.004]
[1737953576114,0.37648724,100360.0,100350.0,0.203411]
[1737953577619,0.84223232,100360.0,100350.0,0.004]
[1737953577811,0.73728724,100360.0,100350.0,0.004]
[1737953578511,0.84223232,100360.0,100350.0,0.004]
[1737953580516,0.73728724,100360.0,100350.0,0.004]
[1737953580818,0.17709524,100360.0,100350.0,0.203411]
[1737953581015,0.48143232,100360.0,100350.0,0.249611]
[1737953581214,0.37648724,100360.0,100350.0,0.249611]
[1737953581520,0.17709524,100360.0,100350.0,0.249611]
[1737953581713,0.17709524,100360.0,100350.0,0.295311]
[1737953582022,0.17709524,100360.0,100350.0,0.76105608]
[1737953582420,0.00014898,100370.0,100350.0,0.66659016]
[1737953582716,0.00014898,100370.0,100360.0,0.70953708]
[1737953583617,0.18555977,100380.0,100370.0,0.199372]
[1737953584122,0.18555977,100380.0,100370.0,1.699372]
[1737953585022,0.29050485,100380.0,100370.0,0.201372]
[1737953585209,0.85065685,100380.0,100370.0,0.002]
[1737953585409,0.89445685,100380.0,100370.0,0.002]
[1737953586012,0.89545685,100380.0,100370.0,0.004]
[1737953586226,1.00040193,100380.0,100370.0,0.004]
[1737953587116,0.80104993,100380.0,100360.0,0.00014898]
[1737953587311,0.51074508,100370.0,100350.0,0.41618351]
[1737953587516,0.70864808,100360.0,100350.0,0.41618351]
[1737953587726,0.603703,100360.0,100350.0,0.41618351]
[1737953588616,0.70864808,100360.0,100350.0,0.41618351]
[1737953589019,0.603703,100360.0,100350.0,0.41618351]
[1737953589221,0.604703,100360.0,100350.0,0.41618351]
[1737953589416,0.70964808,100360.0,100350.0,0.41618351]
[1737953590022,0.70964808,100360.0,100350.0,0.41818351]
[1737953590915,0.604703,100360.0,100350.0,0.002]
[1737953591126,0.561203,100360.0,100350.0,0.201411]
[1737953591326,0.66614808,100360.0,100350.0,0.201411]
[1737953592422,0.66614808,100360.0,100350.0,0.002]
[1737953593928,0.46674508,100360.0,100340.0,0.13503222]
[1737953594121,0.199431,100340.0,100330.0,0.19945]
[1737953594316,0.66517608,100340.0,100320.0,0.604971]
[1737953594521,0.560231,100340.0,100330.0,0.199451]
[1737953594725,0.56037998,100340.0,100330.0,0.199451]
[1737953596135,0.00014898,100340.0,100330.0,0.199451]
[1737953596433,0.00114898,100340.0,100330.0,0.199451]
[1737953597027,0.00114898,100340.0,100330.0,0.66519608]
[1737953597028,0.00214898,100340.0,100330.0,0.66519608]
[1737953597235,0.1192522,100340.0,100330.0,0.66519608]
[1737953597433,0.14644273,100350.0,100330.0,0.85698508]
[1737953597730,0.14644273,100350.0,100340.0,0.71097608]
[1737953597938,0.14644273,100350.0,100340.0,0.35017608]
[1737953598534,0.25138781,100350.0,100340.0,0.199431]
[1737953599032,0.14644273,100350.0,100340.0,0.199431]
[1737953599235,0.81161581,100350.0,100330.0,0.19959798]
[1737953599434,0.0481,100340.0,100330.0,0.20059798]
[1737953599730,0.71327608,100340.0,100330.0,0.00114898]
[1737953599928,0.76117608,100340.0,100330.0,0.00114898]
[1737953600124,0.1406,100340.0,100330.0,0.20059998]
[1737953600833,0.1406,100340.0,100330.0,0.19959998]
[1737953602436,0.0491,100340.0,100330.0,0.56039998]
[1737953602644,0.0501,100340.0,100330.0,0.56139998]
[1737953603029,0.0501,100340.0,100330.0,0.20059998]
[1737953604540,0.13796021,100340.0,100330.0,0.20059998]
[1737953604937,0.49876021,100340.0,100330.0,0.20059998]
[1737953605137,0.69819121,100340.0,100330.0,0.20059998]
[1737953607745,0.13796021,100340.0,100330.0,1.70059998]
[1737953607944,0.08986021,100340.0,100330.0,1.70059998]
[1737953608946,0.08986021,100340.0,100330.0,2.06139998]
[1737953609147,0.08986021,100340.0,100330.0,1.74629998]
[1737953609443,0.08986021,100340.0,100330.0,2.10709998]
[1737953610145,0.08986021,100340.0,100330.0,2.21204506]
[1737953610645,0.14644273,100350.0,100330.0,2.40379406]
[1737953610846,0.17584875,100360.0,100350.0,0.199412]
[1737953611041,0.17584875,100360.0,100350.0,0.66515708]
[1737953611350,0.17584875,100360.0,100350.0,0.607012]
[1737953611543,0.17584875,100360.0,100350.0,0.246212]
[1737953611748,0.4271673,100360.0,100350.0,0.246212]
[1737953611944,0.7879673,100360.0,100350.0,0.246212]
[1737953612141,1.0331763,100360.0,100340.0,0.19943]
[1737953612342,0.66516208,100350.0,100330.0,0.56039698]
[1737953612648,0.71046208,100350.0,100330.0,0.56239698]
[1737953613245,0.70946208,100350.0,100330.0,0.56039698]
[1737953613450,0.70946208,100350.0,100340.0,0.002]
[1737953614050,0.70946208,100350.0,100330.0,0.56039698]
[1737953614247,0.71046208,100350.0,100330.0,0.56339698]
[1737953614555,0.71146208,100350.0,100330.0,0.56539698]
[1737953614942,0.71046208,100350.0,100330.0,0.56339698]
[1737953615247,0.4071,100350.0,100340.0,0.002]
[1737953615449,0.51204508,100350.0,100340.0,0.201431]
[1737953615644,0.51104508,100350.0,100340.0,0.201431]
[1737953615842,0.4061,100350.0,100340.0,0.203431]
[1737953616446,0.001,100350.0,100340.0,0.203431]
[1737953616644,0.001,100350.0,100340.0,0.248631]
[1737953617251,0.001,100350.0,100340.0,0.246631]
[1737953617957,0.001,100350.0,100340.0,0.247631]
[1737953618347,0.001,100350.0,100340.0,0.202431]
[1737953620454,0.66615708,100350.0,100340.0,0.003]
[1737953620956,0.561212,100350.0,100340.0,0.003]
[1737953621554,0.66615708,100350.0,100340.0,0.003]
[1737953624767,0.83155708,100350.0,100340.0,0.003]
[1737953624952,0.561212,100350.0,100340.0,0.003]
[1737953625772,0.66615708,100350.0,100340.0,0.003]
[1737953626766,0.561212,100350.0,100340.0,0.003]
[1737953626968,0.001,100350.0,100340.0,0.202431]
[1737953627163,0.001,100350.0,100340.0,0.563231]
[1737953628055,0.001,100350.0,100340.0,2.063231]
[1737953628266,0.10594508,100350.0,100340.0,0.563231]
[1737953628660,0.001,100350.0,100340.0,0.563231]
[1737953629366,0.10594508,100350.0,100340.0,0.202431]
[1737953629859,0.30535708,100350.0,100340.0,0.003]
[1737953630259,0.93650216,100350.0,100340.0,0.003]
[1737953631562,0.93550216,100350.0,100340.0,0.002]
[1737953631768,0.93650216,100350.0,100340.0,0.003]
[1737953632561,1.02758216,100350.0,100340.0,0.003]
[1737953634763,0.86218216,100350.0,100340.0,0.003]
[1737953635655,0.771851,100350.0,100340.0,0.003]
[1737953636069,1.05249585,100350.0,100340.0,0.003]
[1737953637869,0.96141585,100350.0,100340.0,0.003]
[1737953638069,1.05249585,100350.0,100340.0,0.003]
[1737953639268,0.94755077,100350.0,100340.0,0.003]
[1737953640073,0.96141585,100350.0,100340.0,0.003]
[1737953641772,0.85647077,100350.0,100340.0,0.003]
[1737953641968,0.96141585,100350.0,100340.0,0.003]
[1737953642276,0.199431,100340.0,100330.0,0.19959998]
[1737953642469,0.70797608,100340.0,100330.0,0.19959998]
[1737953643474,0.70797608,100340.0,100330.0,0.00014898]
[1737953645574,0.199452,100330.0,100310.0,0.78208043]
[1737953645774,0.10494508,100320.0,100310.0,0.78208043]
[1737953646177,0.34789708,100330.0,100310.0,0.78208043]
[1737953646579,0.34804606,100330.0,100310.0,0.78208043]
[1737953646873,0.34804606,100330.0,100320.0,0.199471]
[1737953647078,0.00114898,100330.0,100320.0,0.560271]
[1737953647277,0.00114898,100330.0,100320.0,0.199471]
[1737953647778,0.10609406,100330.0,100320.0,0.199471]
[1737953647979,0.10609406,100330.0,100320.0,0.560271]
[1737953648169,0.10609406,100330.0,100320.0,0.199471]
[1737953648864,0.10709406,100330.0,100320.0,0.199471]
[1737953649870,0.30654506,100330.0,100320.0,0.199471]
[1737953650178,0.32144474,100330.0,100320.0,0.199471]
[1737953650380,0.32044474,100330.0,100320.0,0.199471]
[1737953650678,0.32144474,100330.0,100320.0,0.199471]
[1737953651780,0.46821549,100330.0,100320.0,0.199471]
[1737953653277,0.51121549,100330.0,100320.0,0.199471]
[1737953656592,0.51121549,100330.0,100310.0,0.3608]
[1737953656593,0.199471,100320.0,100310.0,0.3608]
[1737953656791,0.10494508,100320.0,100310.0,0.560291]
[1737953657093,0.46821949,100330.0,100310.0,0.692391]
[1737953657290,0.16381941,100330.0,100320.0,0.560271]
[1737953657486,0.26876449,100330.0,100320.0,0.560271]
[1737953657986,0.26776449,100330.0,100320.0,0.199471]
[1737953658295,0.26676449,100330.0,100320.0,0.199471]
[1737953658890,0.26776449,100330.0,100320.0,0.199471]
[1737953661900,0.26776449,100330.0,100320.0,0.560271]
[1737953662103,0.16281941,100330.0,100320.0,0.66521608]
[1737953662601,0.14791973,100330.0,100320.0,0.560271]
[1737953663098,0.14791973,100330.0,100320.0,0.66521608]
[1737953663598,0.14791973,100330.0,100320.0,2.16521608]
[1737953664998,0.14791973,100330.0,100320.0,1.80441608]